[Event "Live Chess"]
[Site "Chess.com"]
[Date "2024.06.02"]
[Round "-"]
[White "f4nomore"]
[Black "RockTroll"]
[Result "0-1"]
[WhiteElo "1259"]
[BlackElo "2185"]
[TimeControl "300"]
[EndTime "23:53:02 PDT"]
[Termination "RockTroll won by resignation"]

1. d4 {[%clk 0:04:56.7]} 1... Nf6 {[%clk 0:04:58.3]} 2. Bg5 {[%clk 0:04:54.3]}
2... g6 {[%clk 0:04:57]} 3. Bxf6 {[%clk 0:04:52.6]} 3... exf6 {[%clk 0:04:52.8]}
4. Nf3 {[%clk 0:04:51.2]} 4... d5 {[%clk 0:04:42.8]} 5. e3 {[%clk 0:04:50.1]}
5... Nd7 {[%clk 0:04:17.8]} 6. Nbd2 {[%clk 0:04:47.2]} 6... Nb6 {[%clk
0:03:58.1]} 7. Be2 {[%clk 0:04:43.7]} 7... Bd6 {[%clk 0:03:51.1]} 8. O-O {[%clk
0:04:39.9]} 8... h5 {[%clk 0:03:27.7]} 9. c4 {[%clk 0:04:38.4]} 9... dxc4 {[%clk
0:03:25.8]} 10. Nxc4 {[%clk 0:04:33.8]} 10... Nxc4 {[%clk 0:03:24.4]} 11. Bxc4
{[%clk 0:04:31.6]} 11... h4 {[%clk 0:03:23.8]} 12. h3 {[%clk 0:04:27.3]} 12...
Bf5 {[%clk 0:03:19.1]} 13. Qb3 {[%clk 0:04:23.9]} 13... Qd7 {[%clk 0:03:16.9]}
14. Qxb7 {[%clk 0:04:16.7]} 14... O-O {[%clk 0:03:15.4]} 15. Nxh4 {[%clk
0:04:07]} 15... Bxh3 {[%clk 0:03:12.2]} 16. f4 {[%clk 0:03:31.1]} 16... Qg4
{[%clk 0:03:06.3]} 17. Bxf7+ {[%clk 0:03:15.9]} 17... Kxf7 {[%clk 0:03:01.8]}
18. Qd5+ {[%clk 0:02:57.1]} 18... Kg7 {[%clk 0:02:58.4]} 19. Nxg6 {[%clk
0:02:28.2]} 19... Qxg6 {[%clk 0:02:46.5]} 20. Qf3 {[%clk 0:02:15.9]} 20... Bg4
{[%clk 0:02:43.8]} 21. Qg3 {[%clk 0:02:11.7]} 21... Rh8 {[%clk 0:02:42.7]} 22.
Kf2 {[%clk 0:02:02.5]} 22... Qc2+ {[%clk 0:02:27.3]} 23. Kg1 {[%clk 0:01:58.5]}
23... f5 {[%clk 0:02:26.8]} 24. Rf2 {[%clk 0:01:46.6]} 24... Qe4 {[%clk
0:02:22.3]} 25. Re2 {[%clk 0:01:39.8]} 25... Rh6 {[%clk 0:02:19.6]} 26. Qf2
{[%clk 0:01:25.6]} 26... Rah8 {[%clk 0:02:17.4]} 27. Kf1 {[%clk 0:01:19.5]}
27... Rh1+ {[%clk 0:02:15.8]} 28. Qg1 {[%clk 0:01:16.7]} 28... Bxe2+ {[%clk
0:02:12]} 29. Kxe2 {[%clk 0:01:15.2]} 29... Qc2+ {[%clk 0:02:10.1]} 30. Kf3
{[%clk 0:01:11.1]} 30... Rxg1 {[%clk 0:02:09.3]} 31. Rxg1 {[%clk 0:01:08.6]}
31... Qe4+ {[%clk 0:02:04.8]} 32. Kf2 {[%clk 0:01:06.7]} 32... Rb8 {[%clk
0:02:04.4]} 33. b3 {[%clk 0:00:57.9]} 33... Rb6 {[%clk 0:02:03.9]} 34. g4 {[%clk
0:00:55.4]} 34... Rc6 {[%clk 0:02:02.1]} 35. gxf5+ {[%clk 0:00:52.3]} 35... Kf7
{[%clk 0:02:01.8]} 36. Re1 {[%clk 0:00:42.7]} 36... Rc2+ {[%clk 0:02:01]} 37.
Re2 {[%clk 0:00:41.8]} 37... Rxe2+ {[%clk 0:02:00.2]} 38. Kxe2 {[%clk
0:00:40.6]} 38... Kf6 {[%clk 0:01:59.6]} 0-1

[Event "Live Chess"]
[Site "Chess.com"]
[Date "2024.06.02"]
[Round "-"]
[White "nigelst"]
[Black "vincents82"]
[Result "0-1"]
[WhiteElo "1733"]
[BlackElo "2005"]
[TimeControl "300"]
[EndTime "23:53:15 PDT"]
[Termination "vincents82 won by resignation"]

1. e4 {[%clk 0:04:55.9]} 1... d5 {[%clk 0:04:54.7]} 2. exd5 {[%clk 0:04:54.4]}
2... Qxd5 {[%clk 0:04:54]} 3. Nc3 {[%clk 0:04:53.7]} 3... Qd8 {[%clk 0:04:53.2]}
4. Nf3 {[%clk 0:04:52.5]} 4... Bg4 {[%clk 0:04:51.7]} 5. d4 {[%clk 0:04:48.2]}
5... e6 {[%clk 0:04:51.1]} 6. h3 {[%clk 0:04:47]} 6... Bxf3 {[%clk 0:04:50]} 7.
Qxf3 {[%clk 0:04:45.6]} 7... c6 {[%clk 0:04:49.7]} 8. Be3 {[%clk 0:04:43.2]}
8... Nf6 {[%clk 0:04:48.7]} 9. O-O-O {[%clk 0:04:41.4]} 9... Bb4 {[%clk
0:04:48.2]} 10. Ne4 {[%clk 0:04:37.2]} 10... Nxe4 {[%clk 0:04:46.4]} 11. Qxe4
{[%clk 0:04:35.7]} 11... Qd5 {[%clk 0:04:45.5]} 12. Qxd5 {[%clk 0:04:34.1]}
12... cxd5 {[%clk 0:04:45.2]} 13. c3 {[%clk 0:04:30.1]} 13... Bd6 {[%clk
0:04:43.9]} 14. Bb5+ {[%clk 0:04:27.9]} 14... Nc6 {[%clk 0:04:42.3]} 15. g3
{[%clk 0:04:23.3]} 15... O-O {[%clk 0:04:41.2]} 16. Rhe1 {[%clk 0:04:20.8]}
16... a6 {[%clk 0:04:40.3]} 17. Bd3 {[%clk 0:04:18.2]} 17... b5 {[%clk
0:04:38.3]} 18. Kb1 {[%clk 0:04:16.3]} 18... b4 {[%clk 0:04:29.9]} 19. cxb4
{[%clk 0:04:11.4]} 19... Nxb4 {[%clk 0:04:27.8]} 20. Be2 {[%clk 0:04:07.9]}
20... Rfc8 {[%clk 0:04:25.8]} 21. Rc1 {[%clk 0:04:06]} 21... Kf8 {[%clk
0:04:20.6]} 22. Rxc8+ {[%clk 0:04:03.8]} 22... Rxc8 {[%clk 0:04:19.6]} 0-1

[Event "Live Chess"]
[Site "Chess.com"]
[Date "2024.06.02"]
[Round "-"]
[White "VIDYUTGANESH"]
[Black "Greenbecker"]
[Result "1-0"]
[WhiteElo "1752"]
[BlackElo "1701"]
[TimeControl "300"]
[EndTime "23:53:20 PDT"]
[Termination "VIDYUTGANESH won by resignation"]

1. e4 {[%clk 0:04:58.4]} 1... Nc6 {[%clk 0:04:57.8]} 2. Nf3 {[%clk 0:04:58]}
2... d6 {[%clk 0:04:56.6]} 3. d4 {[%clk 0:04:56.3]} 3... Bg4 {[%clk 0:04:54.8]}
4. Bb5 {[%clk 0:04:55]} 4... a6 {[%clk 0:04:53.1]} 5. Bxc6+ {[%clk 0:04:53.5]}
5... bxc6 {[%clk 0:04:52.2]} 6. O-O {[%clk 0:04:53]} 6... Nf6 {[%clk 0:04:50.1]}
7. Nc3 {[%clk 0:04:50.2]} 7... e6 {[%clk 0:04:48.9]} 8. h3 {[%clk 0:04:48.5]}
8... Bh5 {[%clk 0:04:46.3]} 9. Qd3 {[%clk 0:04:45.4]} 9... Be7 {[%clk
0:04:45.2]} 10. Re1 {[%clk 0:04:43.1]} 10... O-O {[%clk 0:04:44]} 11. e5 {[%clk
0:04:41.5]} 11... dxe5 {[%clk 0:04:39.8]} 12. Nxe5 {[%clk 0:04:40.9]} 12... Qd6
{[%clk 0:04:31.3]} 13. Bf4 {[%clk 0:04:38.3]} 13... Nd5 {[%clk 0:04:28]} 14.
Nxd5 {[%clk 0:04:14.2]} 14... Qxd5 {[%clk 0:04:23.9]} 15. c4 {[%clk 0:04:07.2]}
15... Qd8 {[%clk 0:04:10.6]} 16. Nxc6 {[%clk 0:04:03.3]} 16... Qd7 {[%clk
0:04:09.8]} 17. Ne5 {[%clk 0:03:58.9]} 17... Qd8 {[%clk 0:04:03.8]} 18. Qg3
{[%clk 0:03:54.9]} 18... Bg6 {[%clk 0:03:56.2]} 19. d5 {[%clk 0:03:43.2]} 19...
exd5 {[%clk 0:03:50.9]} 20. cxd5 {[%clk 0:03:43.1]} 20... Qxd5 {[%clk
0:03:44.6]} 21. Nxg6 {[%clk 0:03:40.8]} 21... fxg6 {[%clk 0:03:42.5]} 22. Rxe7
{[%clk 0:03:39.7]} 22... Rf7 {[%clk 0:03:33.5]} 23. Rxf7 {[%clk 0:03:34.8]}
23... Qxf7 {[%clk 0:03:27.5]} 24. Qb3 {[%clk 0:03:30.8]} 24... Qxb3 {[%clk
0:03:15.5]} 25. axb3 {[%clk 0:03:30.2]} 25... Rb8 {[%clk 0:03:11.6]} 26. Bxc7
{[%clk 0:03:22.7]} 26... Rxb3 {[%clk 0:03:09.8]} 27. Be5 {[%clk 0:03:22.3]}
27... Rb6 {[%clk 0:03:05.2]} 28. Bd4 {[%clk 0:03:14.3]} 28... Rd6 {[%clk
0:03:00.6]} 29. Bc3 {[%clk 0:03:12.4]} 29... Kf7 {[%clk 0:02:56.7]} 30. Re1
{[%clk 0:03:08.1]} 30... Rc6 {[%clk 0:02:49.9]} 31. Rd1 {[%clk 0:03:05.3]} 31...
Ke6 {[%clk 0:02:44]} 32. Bxg7 {[%clk 0:03:03.5]} 32... Kf5 {[%clk 0:02:34.1]}
33. g4+ {[%clk 0:02:52.1]} 33... Ke4 {[%clk 0:02:31.7]} 34. Rd4+ {[%clk
0:02:48.7]} 34... Kf3 {[%clk 0:02:29.1]} 35. Rd3+ {[%clk 0:02:33.3]} 35... Ke4
{[%clk 0:02:21.6]} 36. Re3+ {[%clk 0:02:31.4]} 36... Kf4 {[%clk 0:02:15.3]} 37.
Bh6+ {[%clk 0:02:28.2]} 37... g5 {[%clk 0:02:14.1]} 38. Bf8 {[%clk 0:02:19.9]}
38... Rc2 {[%clk 0:01:56.8]} 39. Ba3 {[%clk 0:02:17.1]} 39... Rd2 {[%clk
0:01:43.1]} 40. Kg2 {[%clk 0:02:10.8]} 40... h6 {[%clk 0:01:34.4]} 41. Re6
{[%clk 0:02:08.8]} 1-0

[Event "Live Chess"]
[Site "Chess.com"]
[Date "2024.06.02"]
[Round "-"]
[White "Delacorta"]
[Black "juniortay"]
[Result "0-1"]
[WhiteElo "1525"]
[BlackElo "2407"]
[TimeControl "300"]
[EndTime "23:54:11 PDT"]
[Termination "juniortay won by resignation"]

1. d4 {[%clk 0:04:57]} 1... Nf6 {[%clk 0:04:58.1]} 2. Nf3 {[%clk 0:04:56.1]}
2... g6 {[%clk 0:04:55]} 3. Bg5 {[%clk 0:04:50.5]} 3... Bg7 {[%clk 0:04:53.8]}
4. Qd2 {[%clk 0:04:49.5]} 4... c6 {[%clk 0:04:48.2]} 5. Bh6 {[%clk 0:04:48]}
5... O-O {[%clk 0:04:46.9]} 6. Bxg7 {[%clk 0:04:46.9]} 6... Kxg7 {[%clk
0:04:46]} 7. Na3 {[%clk 0:04:39.9]} 7... Ne4 {[%clk 0:04:44.7]} 8. Qf4 {[%clk
0:04:31.9]} 8... d6 {[%clk 0:04:36.1]} 9. h4 {[%clk 0:04:27.4]} 9... h5 {[%clk
0:04:35]} 10. Qxe4 {[%clk 0:04:21.7]} 10... Bf5 {[%clk 0:04:28.5]} 11. Qe3
{[%clk 0:04:10.2]} 11... e5 {[%clk 0:04:25.9]} 12. dxe5 {[%clk 0:04:05.8]} 12...
dxe5 {[%clk 0:04:25]} 13. Qc3 {[%clk 0:04:00.3]} 13... f6 {[%clk 0:04:23]} 14.
Nc4 {[%clk 0:03:48.7]} 14... Qe7 {[%clk 0:04:17.9]} 15. O-O-O {[%clk 0:03:46.5]}
15... Na6 {[%clk 0:04:13.6]} 16. Qa3 {[%clk 0:03:39.7]} 16... Nb4 {[%clk
0:04:05.8]} 17. Rd2 {[%clk 0:03:09.3]} 17... a5 {[%clk 0:03:57.8]} 18. Nb6
{[%clk 0:02:55.5]} 18... Ra6 {[%clk 0:03:48.4]} 19. Qe3 {[%clk 0:02:43.9]} 19...
Nxa2+ {[%clk 0:03:43.6]} 20. Kb1 {[%clk 0:02:43.2]} 20... Nb4 {[%clk 0:03:42.6]}
21. g3 {[%clk 0:02:26.5]} 21... a4 {[%clk 0:03:36.8]} 22. Bh3 {[%clk 0:02:25.2]}
22... Bxh3 {[%clk 0:03:33.4]} 23. Rxh3 {[%clk 0:02:23.9]} 23... a3 {[%clk
0:03:29.6]} 24. Rd7 {[%clk 0:02:22.8]} 24... a2+ {[%clk 0:03:25.2]} 25. Kc1
{[%clk 0:02:15.6]} 25... a1=Q+ {[%clk 0:03:24.3]} 26. Kd2 {[%clk 0:02:14.5]}
26... Rd8 {[%clk 0:03:23.1]} 0-1

[Event "Live Chess"]
[Site "Chess.com"]
[Date "2024.06.02"]
[Round "-"]
[White "JohanKjeldahl"]
[Black "RichardABates"]
[Result "0-1"]
[WhiteElo "1858"]
[BlackElo "2360"]
[TimeControl "300"]
[EndTime "23:54:25 PDT"]
[Termination "RichardABates won by resignation"]

1. c4 {[%clk 0:04:57.4]} 1... g6 {[%clk 0:04:58.5]} 2. Nc3 {[%clk 0:04:55.9]}
2... Bg7 {[%clk 0:04:57.3]} 3. d4 {[%clk 0:04:54.9]} 3... Nf6 {[%clk 0:04:52.6]}
4. g3 {[%clk 0:04:52.5]} 4... O-O {[%clk 0:04:50.7]} 5. Bg2 {[%clk 0:04:51.6]}
5... d6 {[%clk 0:04:49.9]} 6. e3 {[%clk 0:04:50.5]} 6... c5 {[%clk 0:04:47.5]}
7. Nge2 {[%clk 0:04:49.6]} 7... cxd4 {[%clk 0:04:44.9]} 8. Nxd4 {[%clk
0:04:47.7]} 8... Nc6 {[%clk 0:04:42.2]} 9. O-O {[%clk 0:04:46]} 9... Bd7 {[%clk
0:04:39.6]} 10. b3 {[%clk 0:04:44.9]} 10... Rc8 {[%clk 0:04:32.6]} 11. Bb2
{[%clk 0:04:43.5]} 11... Qa5 {[%clk 0:04:23.7]} 12. Rc1 {[%clk 0:04:33.2]} 12...
a6 {[%clk 0:04:21.4]} 13. a3 {[%clk 0:04:27.6]} 13... Nxd4 {[%clk 0:04:16.9]}
14. exd4 {[%clk 0:04:24]} 14... b5 {[%clk 0:04:11.5]} 15. b4 {[%clk 0:04:15.4]}
15... Qd8 {[%clk 0:04:07.2]} 16. c5 {[%clk 0:04:14.1]} 16... dxc5 {[%clk
0:04:00.9]} 17. dxc5 {[%clk 0:04:12.6]} 17... Be6 {[%clk 0:03:53.4]} 18. Bb7
{[%clk 0:04:00.4]} 18... Qc7 {[%clk 0:03:44]} 19. Bxa6 {[%clk 0:03:57.9]} 19...
Rcd8 {[%clk 0:03:41.9]} 20. Qc2 {[%clk 0:03:46.9]} 20... Bh3 {[%clk 0:03:36.5]}
21. Rfe1 {[%clk 0:03:42]} 21... Qc6 {[%clk 0:03:33.8]} 22. f4 {[%clk 0:03:26.8]}
22... Qxa6 {[%clk 0:03:31.1]} 23. Rxe7 {[%clk 0:03:23.3]} 23... Rfe8 {[%clk
0:03:23.2]} 24. Rce1 {[%clk 0:03:19.1]} 24... Rxe7 {[%clk 0:03:19.3]} 25. Rxe7
{[%clk 0:03:18]} 25... Qc6 {[%clk 0:03:16.6]} 26. Qe2 {[%clk 0:03:10.7]} 26...
Ng4 {[%clk 0:03:00.2]} 27. Ba1 {[%clk 0:02:15]} 27... Bd4+ {[%clk 0:02:53.4]}
0-1

[Event "Live Chess"]
[Site "Chess.com"]
[Date "2024.06.02"]
[Round "-"]
[White "NAZRIZ1977"]
[Black "MagnersCarlsberg2870"]
[Result "1-0"]
[WhiteElo "2102"]
[BlackElo "1821"]
[TimeControl "300"]
[EndTime "23:54:43 PDT"]
[Termination "NAZRIZ1977 won by resignation"]

1. e4 {[%clk 0:04:56.3]} 1... e5 {[%clk 0:04:57.8]} 2. Nf3 {[%clk 0:04:55.1]}
2... Nf6 {[%clk 0:04:56.7]} 3. Nc3 {[%clk 0:04:53.4]} 3... Nc6 {[%clk
0:04:55.5]} 4. d4 {[%clk 0:04:49.7]} 4... Bb4 {[%clk 0:04:51.1]} 5. d5 {[%clk
0:04:48]} 5... Bxc3+ {[%clk 0:04:46.8]} 6. bxc3 {[%clk 0:04:45.6]} 6... Ne7
{[%clk 0:04:42.7]} 7. Nxe5 {[%clk 0:04:13.6]} 7... Nxe4 {[%clk 0:04:41.4]} 8.
Qh5 {[%clk 0:04:11.2]} 8... g6 {[%clk 0:04:37]} 9. Qf3 {[%clk 0:04:05.1]} 9...
Nd6 {[%clk 0:04:35.8]} 10. Qf6 {[%clk 0:03:56.1]} 10... O-O {[%clk 0:04:28.6]}
11. Bh6 {[%clk 0:03:48.9]} 11... Nef5 {[%clk 0:04:24.5]} 12. Ng4 {[%clk
0:03:40.4]} 12... Qxf6 {[%clk 0:04:00.3]} 13. Nxf6+ {[%clk 0:03:38.1]} 13... Kh8
{[%clk 0:03:55.8]} 14. Bxf8 {[%clk 0:03:38]} 14... b6 {[%clk 0:03:48.7]} 15.
Bxd6 {[%clk 0:03:35.3]} 15... cxd6 {[%clk 0:03:47.2]} 16. O-O-O {[%clk
0:03:29.2]} 16... Bb7 {[%clk 0:03:40.6]} 17. Bd3 {[%clk 0:03:20.4]} 17... Rc8
{[%clk 0:03:37.4]} 18. Bxf5 {[%clk 0:03:17.8]} 18... gxf5 {[%clk 0:03:36.3]} 19.
Rd3 {[%clk 0:03:14.6]} 1-0

[Event "Live Chess"]
[Site "Chess.com"]
[Date "2024.06.02"]
[Round "-"]
[White "Crowded_House"]
[Black "JanMur7"]
[Result "0-1"]
[WhiteElo "1693"]
[BlackElo "2260"]
[TimeControl "300"]
[EndTime "23:54:47 PDT"]
[Termination "JanMur7 won on time"]

1. d4 {[%clk 0:04:57.9]} 1... Nf6 {[%clk 0:04:58.4]} 2. Bg5 {[%clk 0:04:57]}
2... d5 {[%clk 0:04:56.3]} 3. e3 {[%clk 0:04:55.9]} 3... Ne4 {[%clk 0:04:53.8]}
4. Bh4 {[%clk 0:04:53.7]} 4... c6 {[%clk 0:04:48.8]} 5. Nd2 {[%clk 0:04:52.9]}
5... Bf5 {[%clk 0:04:46.8]} 6. Bd3 {[%clk 0:04:50.1]} 6... Qb6 {[%clk
0:04:45.5]} 7. b3 {[%clk 0:04:48]} 7... e6 {[%clk 0:04:39]} 8. Nxe4 {[%clk
0:04:24.3]} 8... dxe4 {[%clk 0:04:32.1]} 9. Be2 {[%clk 0:04:19.6]} 9... Bb4+
{[%clk 0:04:31]} 10. Kf1 {[%clk 0:04:14.7]} 10... O-O {[%clk 0:04:29.9]} 11. c4
{[%clk 0:04:09.9]} 11... Qc7 {[%clk 0:04:19.7]} 12. Bg3 {[%clk 0:04:07.8]} 12...
Bd6 {[%clk 0:04:17.8]} 13. Bg4 {[%clk 0:03:59.9]} 13... Bf4 {[%clk 0:04:14.3]}
14. Bxf4 {[%clk 0:03:51.9]} 14... Qe7 {[%clk 0:04:09.5]} 15. Bxb8 {[%clk
0:03:43.3]} 15... Raxb8 {[%clk 0:04:07.6]} 16. Bxf5 {[%clk 0:03:41.5]} 16...
exf5 {[%clk 0:04:07.5]} 17. Ne2 {[%clk 0:03:35.8]} 17... b5 {[%clk 0:04:05.9]}
18. c5 {[%clk 0:03:25.8]} 18... Rbd8 {[%clk 0:03:57.4]} 19. g3 {[%clk
0:03:09.2]} 19... h5 {[%clk 0:03:51.7]} 20. Nf4 {[%clk 0:03:06]} 20... g6 {[%clk
0:03:44.4]} 21. h4 {[%clk 0:03:04.4]} 21... a5 {[%clk 0:03:36.1]} 22. Qc2 {[%clk
0:02:52]} 22... Ra8 {[%clk 0:03:31.7]} 23. Ke2 {[%clk 0:02:47.4]} 23... a4
{[%clk 0:03:29.4]} 24. b4 {[%clk 0:02:40.6]} 24... a3 {[%clk 0:03:28.2]} 25. Qb3
{[%clk 0:02:37.7]} 25... Ra4 {[%clk 0:03:26.2]} 26. Rhd1 {[%clk 0:02:29.7]}
26... Qf6 {[%clk 0:03:19.8]} 27. d5 {[%clk 0:02:21.8]} 27... cxd5 {[%clk
0:03:17.7]} 28. Nxd5 {[%clk 0:02:15.4]} 28... Qe5 {[%clk 0:03:02.1]} 29. Qc3
{[%clk 0:02:01]} 29... Qxc3 {[%clk 0:02:59.5]} 30. Nxc3 {[%clk 0:01:59.4]} 30...
Rxb4 {[%clk 0:02:58.5]} 31. Rab1 {[%clk 0:01:47.6]} 31... Rc4 {[%clk 0:02:55.8]}
32. Nxb5 {[%clk 0:01:42.9]} 32... Rxc5 {[%clk 0:02:51.2]} 33. Nxa3 {[%clk
0:01:40.8]} 33... Ra5 {[%clk 0:02:50]} 34. Nc4 {[%clk 0:01:37.7]} 34... Rxa2+
{[%clk 0:02:47.1]} 35. Rd2 {[%clk 0:01:36.6]} 35... Ra6 {[%clk 0:02:42]} 36. Rb6
{[%clk 0:01:34.1]} 36... Ra4 {[%clk 0:02:36.8]} 37. Ne5 {[%clk 0:01:27.6]} 37...
Ra7 {[%clk 0:02:35.5]} 38. Rdb2 {[%clk 0:01:23.9]} 38... Kg7 {[%clk 0:02:30.2]}
39. Rb7 {[%clk 0:01:13.4]} 39... Rxb7 {[%clk 0:02:21.9]} 40. Rxb7 {[%clk
0:01:11.5]} 40... Kg8 {[%clk 0:02:08.5]} 41. Rd7 {[%clk 0:01:07.4]} 41... Kg7
{[%clk 0:02:03.8]} 42. Kd2 {[%clk 0:00:56.9]} 42... Kf6 {[%clk 0:02:02]} 43. Nc4
{[%clk 0:00:50.7]} 43... Ke6 {[%clk 0:01:56.4]} 44. Rd6+ {[%clk 0:00:48.4]}
44... Ke7 {[%clk 0:01:55.2]} 45. Ra6 {[%clk 0:00:40.1]} 45... Rd8+ {[%clk
0:01:51.3]} 46. Ke2 {[%clk 0:00:37]} 46... Rc8 {[%clk 0:01:48.7]} 47. Ra7+
{[%clk 0:00:33.2]} 47... Ke6 {[%clk 0:01:46.7]} 48. Nd2 {[%clk 0:00:26.7]} 48...
Rc2 {[%clk 0:01:43.6]} 49. Ra6+ {[%clk 0:00:25.2]} 49... Ke7 {[%clk 0:01:41.7]}
50. Ra7+ {[%clk 0:00:24.5]} 50... Kf6 {[%clk 0:01:39.7]} 51. Ra6+ {[%clk
0:00:24]} 51... Kg7 {[%clk 0:01:38.7]} 52. Kd1 {[%clk 0:00:19.9]} 52... Rb2
{[%clk 0:01:37.3]} 53. Ra7 {[%clk 0:00:18.9]} 53... Rb4 {[%clk 0:01:31.6]} 54.
Ke2 {[%clk 0:00:17.9]} 54... Rb8 {[%clk 0:01:28.2]} 55. Rd7 {[%clk 0:00:16.7]}
55... Rc8 {[%clk 0:01:27.2]} 56. Kf1 {[%clk 0:00:15.4]} 56... Rc1+ {[%clk
0:01:25.8]} 57. Kg2 {[%clk 0:00:14.7]} 57... Rd1 {[%clk 0:01:24.6]} 58. Rd4
{[%clk 0:00:12.2]} 58... Ra1 {[%clk 0:01:22.5]} 59. Nxe4 {[%clk 0:00:11.4]}
59... fxe4 {[%clk 0:01:21.1]} 60. Rxe4 {[%clk 0:00:11.1]} 60... Ra5 {[%clk
0:01:20.1]} 61. g4 {[%clk 0:00:10.4]} 61... hxg4 {[%clk 0:01:17.9]} 62. Rxg4
{[%clk 0:00:09.6]} 62... Rh5 {[%clk 0:01:16.2]} 63. Kg3 {[%clk 0:00:08]} 63...
Rh8 {[%clk 0:01:15]} 64. f4 {[%clk 0:00:07.6]} 64... Re8 {[%clk 0:01:13.8]} 65.
Kf3 {[%clk 0:00:06.1]} 65... f5 {[%clk 0:01:06.7]} 66. Rg5 {[%clk 0:00:05]}
66... Kf6 {[%clk 0:00:55.2]} 67. h5 {[%clk 0:00:02.8]} 67... gxh5 {[%clk
0:00:53.5]} 68. Rxh5 {[%clk 0:00:02.4]} 68... Ra8 {[%clk 0:00:49.4]} 69. Rh6+
{[%clk 0:00:01.9]} 69... Kg7 {[%clk 0:00:48.4]} 70. Rh5 {[%clk 0:00:00.8]} 70...
Kg6 {[%clk 0:00:47.5]} 0-1

[Event "Live Chess"]
[Site "Chess.com"]
[Date "2024.06.02"]
[Round "-"]
[White "Ksenia_2013"]
[Black "Hoogleboogle"]
[Result "1-0"]
[WhiteElo "970"]
[BlackElo "1331"]
[TimeControl "300"]
[EndTime "23:54:48 PDT"]
[Termination "Ksenia_2013 won by checkmate"]

1. e4 {[%clk 0:04:57.4]} 1... c6 {[%clk 0:04:56.1]} 2. c4 {[%clk 0:04:52.5]}
2... d5 {[%clk 0:04:47.4]} 3. cxd5 {[%clk 0:04:49.4]} 3... cxd5 {[%clk 0:04:46]}
4. exd5 {[%clk 0:04:48.2]} 4... Qxd5 {[%clk 0:04:44.6]} 5. Nc3 {[%clk
0:04:46.5]} 5... Qd8 {[%clk 0:04:42.5]} 6. Bc4 {[%clk 0:04:43.7]} 6... Nf6
{[%clk 0:04:38.9]} 7. Nf3 {[%clk 0:04:41.3]} 7... e6 {[%clk 0:04:36.1]} 8. O-O
{[%clk 0:04:37.5]} 8... b6 {[%clk 0:04:27.7]} 9. Bb5+ {[%clk 0:04:29.3]} 9...
Bd7 {[%clk 0:04:24.6]} 10. Bxd7+ {[%clk 0:04:23.8]} 10... Nbxd7 {[%clk
0:04:21.6]} 11. Ng5 {[%clk 0:04:19.2]} 11... Bd6 {[%clk 0:04:15]} 12. d4 {[%clk
0:04:16.1]} 12... Qc7 {[%clk 0:04:13]} 13. Qf3 {[%clk 0:04:11.5]} 13... Bxh2+
{[%clk 0:04:04.8]} 14. Kh1 {[%clk 0:04:06.5]} 14... Bd6 {[%clk 0:03:46.5]} 15.
Qxa8+ {[%clk 0:04:04.1]} 15... Nb8 {[%clk 0:03:31.3]} 16. Nb5 {[%clk 0:03:56.8]}
16... Qd8 {[%clk 0:03:25.1]} 17. Nxd6+ {[%clk 0:03:52.3]} 17... Qxd6 {[%clk
0:03:22.2]} 18. Qxa7 {[%clk 0:03:47.8]} 18... h6 {[%clk 0:03:20.2]} 19. Qxf7+
{[%clk 0:03:45.8]} 19... Kd8 {[%clk 0:03:14.9]} 20. Qxg7 {[%clk 0:03:42.6]}
20... hxg5+ {[%clk 0:03:12.4]} 21. Qxh8+ {[%clk 0:03:40.6]} 21... Kc7 {[%clk
0:03:10.8]} 22. Qxf6 {[%clk 0:03:36.9]} 22... Kc6 {[%clk 0:03:06.6]} 23. Qxg5
{[%clk 0:03:29.5]} 23... Nd7 {[%clk 0:03:00.8]} 24. Bf4 {[%clk 0:03:23.1]} 24...
Qxd4 {[%clk 0:02:58.6]} 25. Rfc1+ {[%clk 0:03:20.6]} 25... Kb7 {[%clk 0:02:56]}
26. Rc7+ {[%clk 0:03:16.2]} 26... Ka6 {[%clk 0:02:53.9]} 27. Qd8 {[%clk
0:03:06.1]} 27... Qxf4 {[%clk 0:02:46.6]} 28. Rxd7 {[%clk 0:03:04.5]} 28... Qh4+
{[%clk 0:02:25.8]} 29. Kg1 {[%clk 0:02:59.9]} 29... Qb4 {[%clk 0:02:22.8]} 30.
Qa8+ {[%clk 0:02:54.4]} 30... Kb5 {[%clk 0:02:21.1]} 31. Qe8 {[%clk 0:02:44]}
31... Qxb2 {[%clk 0:02:05.6]} 32. Rd2+ {[%clk 0:02:41.9]} 32... Kb4 {[%clk
0:02:03.5]} 33. Rxb2+ {[%clk 0:02:40.2]} 33... Kc3 {[%clk 0:02:01]} 34. Rxb6
{[%clk 0:02:35.3]} 34... e5 {[%clk 0:01:55.6]} 35. Qxe5+ {[%clk 0:02:33.2]}
35... Kd3 {[%clk 0:01:53.3]} 36. Rd1+ {[%clk 0:02:31.8]} 36... Kc2 {[%clk
0:01:51.1]} 37. Qe2+ {[%clk 0:02:26.5]} 37... Kc3 {[%clk 0:01:49.1]} 38. Rd3+
{[%clk 0:02:24.9]} 38... Kc4 {[%clk 0:01:47.4]} 39. Qe4+ {[%clk 0:02:23.6]}
39... Kc5 {[%clk 0:01:46]} 40. Rd5+ {[%clk 0:02:22.6]} 40... Kxb6 {[%clk
0:01:43.3]} 41. Qe6+ {[%clk 0:02:20.4]} 41... Kc7 {[%clk 0:01:41.8]} 42. Rd7+
{[%clk 0:02:19.4]} 42... Kc8 {[%clk 0:01:38.3]} 43. Qe8# {[%clk 0:02:18.1]} 1-0

[Event "Live Chess"]
[Site "Chess.com"]
[Date "2024.06.02"]
[Round "-"]
[White "SavagePawn7"]
[Black "elephantgerrald"]
[Result "1-0"]
[WhiteElo "660"]
[BlackElo "815"]
[TimeControl "300"]
[EndTime "23:56:39 PDT"]
[Termination "SavagePawn7 won by checkmate"]

1. e4 {[%clk 0:04:56.2]} 1... e5 {[%clk 0:04:58.2]} 2. d4 {[%clk 0:04:54.1]}
2... exd4 {[%clk 0:04:54.4]} 3. c3 {[%clk 0:04:51.8]} 3... dxc3 {[%clk
0:04:53.1]} 4. Bc4 {[%clk 0:04:49.7]} 4... cxb2 {[%clk 0:04:51.2]} 5. Bxb2
{[%clk 0:04:48.3]} 5... Bb4+ {[%clk 0:04:45.6]} 6. Nc3 {[%clk 0:04:46.3]} 6...
Nf6 {[%clk 0:04:42]} 7. e5 {[%clk 0:04:41.2]} 7... Bxc3+ {[%clk 0:04:39.6]} 8.
Bxc3 {[%clk 0:04:39.5]} 8... Qe7 {[%clk 0:04:38.4]} 9. Qe2 {[%clk 0:04:35.3]}
9... Ng8 {[%clk 0:04:29.3]} 10. Nf3 {[%clk 0:04:31.8]} 10... Nc6 {[%clk
0:04:26.3]} 11. O-O {[%clk 0:04:25.7]} 11... f6 {[%clk 0:04:23.8]} 12. Rfe1
{[%clk 0:04:19.6]} 12... fxe5 {[%clk 0:04:19.4]} 13. Nxe5 {[%clk 0:04:12.9]}
13... Qf6 {[%clk 0:04:15]} 14. Ng4+ {[%clk 0:03:54.5]} 14... Qe7 {[%clk
0:04:10.8]} 15. Qxe7+ {[%clk 0:03:46.3]} 15... Ngxe7 {[%clk 0:04:08.8]} 16. Bxg7
{[%clk 0:03:37.7]} 16... Rg8 {[%clk 0:04:04.5]} 17. Bxg8 {[%clk 0:03:33.5]}
17... Nb4 {[%clk 0:04:00]} 18. Re4 {[%clk 0:03:13.5]} 18... c5 {[%clk
0:03:49.1]} 19. Rae1 {[%clk 0:03:07.3]} 19... Nd5 {[%clk 0:03:43]} 20. Nf6+
{[%clk 0:02:54.7]} 20... Nxf6 {[%clk 0:03:35.7]} 21. Rxe7+ {[%clk 0:02:50.5]}
21... Kd8 {[%clk 0:03:31.9]} 22. Bxf6 {[%clk 0:02:48.4]} 22... Kc7 {[%clk
0:03:30.4]} 23. Be5+ {[%clk 0:02:42.5]} 23... Kb6 {[%clk 0:03:25.9]} 24. Rb1+
{[%clk 0:02:37.2]} 24... Ka5 {[%clk 0:03:24.5]} 25. Bc3+ {[%clk 0:02:27.5]}
25... Ka4 {[%clk 0:03:21.7]} 26. Re4+ {[%clk 0:02:12.1]} 26... Ka3 {[%clk
0:03:18.3]} 27. Rb3+ {[%clk 0:01:43.8]} 27... Kxa2 {[%clk 0:03:14.5]} 28. Ra4#
{[%clk 0:01:41.4]} 1-0